[Event "Polish Youth Ekstraliga 2022"]
[Site "Lublin"]
[Date "2022.06.25"]
[Round "1.26"]
[White "Chyzy, Jakub"]
[Black "Budzisz, Adrian"]
[Result "0-1"]
[ECO "C11"]
[WhiteElo "2191"]
[BlackElo "2152"]
[Annotator "RC"]
[PlyCount "132"]
[EventDate "2022.06.24"]
[EventType "team-tourn"]
[EventCountry "POL"]
[SourceTitle "playchess.com"]
[Source "ChessBase"]
[SourceQuality "1"]
[TimeControl "40/5400+30:1800+30"]

1. e4 {[%emt 0:01:54]} e6 {[%emt 0:00:07]} 2. Nf3 {[%emt 0:00:11]} d5 {[%emt 0:00:41]} 3. Nc3 {[%emt 0:00:04]} dxe4 {[%emt 0:03:29]} 4. Nxe4 {[%emt 0:01:14]} Be7 {[%emt 0:00:08]} 5. d4 {[%emt 0:00:45]} Nd7 {[%emt 0:01:45]} 6. Bd3 {[%emt 0:01:57]} Ngf6 {[%emt 0:01:08]} 7. O-O {[%emt 0:14:12]} Nxe4 {[%emt 0:03:04]} 8. Bxe4 {[%emt 0:00:08]} O-O {[%emt 0:00:10]} 9. c4 {[%emt 0:24:43]} c5 {[%emt 0:16:39]} 10. Bc2 {[%emt 0:13:26]} h6 {[%emt 0:06:16]} 11. Bf4 {[%emt 0:05:32]} Re8 {[%emt 0:09:28]} 12. d5 {[%emt 0:08:02]} Bf6 {[%emt 0:08:04]} 13. Rb1 {[%emt 0:04:55]} Nf8 {[%emt 0:04:39]} 14. b4 {[%emt 0:17:59]} exd5 {[%emt 0:05:00]} 15. cxd5 {[%emt 0:00:01]} c4 {[%emt 0:00:15]} 16. b5 {[%emt 0:00:13]} Bd7 {[%emt 0:05:12]} 17. h3 {[%emt 0:00:33]} Qa5 {[%emt 0:02:30]} 18. a4 {[%emt 0:00:23]} Rad8 {[%emt 0:01:04]} 19. b6 {[%emt 0:03:02]} Bc6 {[%emt 0:03:15]} 20. dxc6 {[%emt 0:00:28]} Rxd1 {[%emt 0:00:52]} 21. Rfxd1 {[%emt 0:00:06]} Ne6 {[%emt 0:03:06]} 22. Bg3 {[%emt 0:00:30]} Qa6 {[%emt 0:00:20]} 23. bxa7 {[%emt 0:00:50]} Qxc6 {[%emt 0:01:12]} 24. Rd6 {[%emt 0:00:22]} Qc8 {[%emt 0:00:56]} 25. Rdb6 {[%emt 0:00:53]} Qa8 {[%emt 0:11:36]} 26. Rxb7 {[%emt 0:00:02]} Rd8 {[%emt 0:00:10]} 27. Bf5 {[%emt 0:00:58]} c3 {[%emt 0:01:21]} 28. Bb8 {[%emt 0:00:34]} Nc5 {[%emt 0:01:59]} 29. R7b5 {[%emt 0:00:29]} Nd3 {[%emt 0:01:25]} 30. Bxd3 {[%emt 0:00:27]} Rxd3 31. Rc1 {[%emt 0:00:32]} Kh7 {[%emt 0:01:56]} 32. Ne5 {[%emt 0:00:24]} Rd4 {[%emt 0:04:36]} 33. Rxc3 {[%emt 0:00:38]} Rxa4 {[%emt 0:00:07]} 34. Rf3 {[%emt 0:00:31]} Qe4 {[%emt 0:02:28]} 35. Ng4 {[%emt 0:00:25]} Ra1+ {[%emt 0:00:14]} 36. Kh2 {[%emt 0:00:08]} Bh4 {[%emt 0:00:05]} 37. Rfb3 {[%emt 0:00:53]} f5 {[%emt 0:00:43]} 38. R3b4 {[%emt 0:00:21]} Qe6 {[%emt 0:01:10]} 39. Ne5 {[%emt 0:00:42]} Bxf2 {[%emt 0:00:14]} 40. Nf3 {[%emt 0:00:00]} Bxa7 {[%emt 0:00:00]} 41. Be5 {[%emt 0:03:52]} Rd1 {[%emt 0:02:52]} 42. Rb1 {[%emt 0:12:40]} Bg1+ {[%emt 0:04:43]} 43. Kh1 {[%emt 0:02:27]} Rxb1 {[%emt 0:00:11]} 44. Rxb1 {[%emt 0:00:05]} Bb6 {[%emt 0:00:05]} 45. Rd1 {[%emt 0:00:33]} Bc5 {[%emt 0:00:29]} 46. Bd4 {[%emt 0:05:37]} Bxd4 {[%emt 0:02:26]} 47. Rxd4 {[%emt 0:00:37]} g5 {[%emt 0:00:18]} 48. Rd1 {[%emt 0:04:06]} g4 {[%emt 0:01:52]} 49. Ng1 {[%emt 0:00:57]} Qe4 50. Rf1 {[%emt 0:04:13]} h5 {[%emt 0:01:28]} 51. Rc1 {[%emt 0:00:48]} Kg6 {[%emt 0:00:09]} 52. Rc3 {[%emt 0:00:21]} Kg5 {[%emt 0:00:29]} 53. Ra3 {[%emt 0:00:40]} Qe1 {[%emt 0:00:27]} 54. Kh2 {[%emt 0:00:31]} f4 {[%emt 0:00:47]} 55. Rb3 {[%emt 0:00:31]} Qe5 {[%emt 0:02:33]} 56. Kh1 {[%emt 0:00:32]} Kh4 {[%emt 0:00:20]} 57. Ra3 {[%emt 0:00:30]} Qb2 {[%emt 0:01:53]} 58. Rd3 {[%emt 0:00:24]} Kg5 {[%emt 0:01:23]} 59. Kh2 {[%emt 0:00:38]} Kf5 {[%emt 0:01:06]} 60. Kh1 {[%emt 0:00:27]} Ke4 {[%emt 0:00:36]} 61. Rd8 {[%emt 0:00:16]} Qb5 {[%emt 0:01:41]} 62. Rf8 {[%emt 0:00:30]} Ke3 {[%emt 0:00:25]} 63. Rf7 {[%emt 0:00:33]} Qb4 {[%emt 0:00:56]} 64. Rf6 {[%emt 0:00:43]} Kf2 {[%emt 0:00:54]} 65. Kh2 {[%emt 0:00:29]} Qe4 {[%emt 0:00:14]} 66. Nf3 {[%emt 0:00:31]} g3+ {[%emt 0:00:08]} 0-1

[Event "Polish Youth Ekstraliga 2022"]
[Site "Lublin"]
[Date "2022.06.25"]
[Round "1.27"]
[White "Ptaszynski, Szymon"]
[Black "Krawczyk, Flawian"]
[Result "1/2-1/2"]
[ECO "B51"]
[WhiteElo "1781"]
[BlackElo "2212"]
[Annotator "TA"]
[PlyCount "69"]
[EventDate "2022.06.24"]
[EventType "team-tourn"]
[EventCountry "POL"]
[SourceTitle "playchess.com"]
[Source "ChessBase"]
[SourceQuality "1"]
[TimeControl "40/5400+30:1800+30"]

{[%evp 9,69,9,31,22,25,29,21,13,20,18,18,-5,0,-7,-6,-17,0,0,0,-6,20,-14,31,0,43,30,31,30,36,29,39,41,48,42,47,37,84,74,121,115,113,120,108,107,116,115,103,106,114,100,102,83,73,91,118,111,111,52,52,13,83,0]} 1. e4 {[%emt 0:00:08]} c5 {[%emt 0:00:05]} 2. Nf3 {[%emt 0:00:03]} d6 {[%emt 0:00:04]} 3. Bb5+ {[%emt 0:00:24]} Nd7 {[%emt 0:00:11]} 4. c4 {[%emt 0:00:08]} a6 {[%emt 0:01:06]} 5. Ba4 {[%emt 0:00:18]} Ngf6 {[%emt 0:00:04]} 6. Nc3 {[%emt 0:00:05] B51: Sicilian: Moscow Variation (3 Bb5+) without 3...Bd7.} e6 {[%emt 0:00:02]} 7. O-O {[%emt 0:00:44]} Be7 {[%emt 0:00:04]} 8. d4 {[%emt 0:04:27] The position is equal.} cxd4 {[%emt 0:00:23]} 9. Nxd4 {[%emt 0:00:06]} O-O {[%emt 0:00:08]} 10. Bxd7 {[%emt 0:00:03]} Bxd7 {[%emt 0:06:14]} 11. Qd3 {[%emt 0:03:39]} Qa5 {[%emt 0:07:35]} 12. Bd2 {[%emt 0:04:37][%cal Oc3d5]} Qh5 {[%emt 0:01:47] [#] Inhibits Nd5.} 13. h3 $146 {[%emt 0:05:52]} ({Predecessor:} 13. Rfe1 Rfc8 14. h3 Be8 15. b3 Nd7 16. a4 Bf6 17. Be3 Qa5 18. Rab1 Ne5 19. Qd2 {1-0 (38) Nevednichy,V (2504)-Pasztor,B (2356) Alba Iulia 2021}) 13... Rfc8 {[%emt 0:06:56]} 14. Rac1 {[%emt 0:06:20]} Bf8 {[%emt 0:06:20][%cal Ob7b5]} (14... b5 $5) 15. Rfd1 {[%emt 0:06:13]} (15. g4 {keeps more tension.} Nxg4 16. hxg4 Qxg4+ 17. Qg3) 15... Bc6 {[%emt 0:24:31]} 16. b3 {[%emt 0:11:39]} Nd7 {[%emt 0:03:12][%cal Ob7b5]} 17. Nxc6 {[%emt 0:01:38]} Rxc6 {[%emt 0:00:20]} 18. Qe2 {[%emt 0:00:49]} Qxe2 {[%emt 0:06:49]} 19. Nxe2 {[%emt 0:00:34]} Nc5 {[%emt 0:03:35]} 20. f3 {[%emt 0:02:54]} Rac8 {[%emt 0:04:58]} 21. Be3 {[%emt 0:02:58]} g6 {[%emt 0:02:08]} 22. Kf2 {[%emt 0:05:09]} f5 {[%emt 0:03:32]} (22... Be7 $14) 23. exf5 $16 {[%emt 0:00:47]} gxf5 {[%emt 0:02:02]} (23... exf5 $142 24. Nd4 R6c7) 24. Nd4 {[%emt 0:06:42]} R6c7 {[%emt 0:00:13][%cal Of5f4]} 25. b4 {[%emt 0:19:38]} Na4 {[%emt 0:00:15]} 26. Nxe6 Rxc4 {[%emt 0:00:06]} 27. Rxc4 {[%emt 0:00:17]} Rxc4 {[%emt 0:00:04]} 28. Nxf8 {White is more active.} Kxf8 {[%emt 0:00:07]} 29. Rxd6 {[%emt 0:07:23]} Rxb4 {[%emt 0:00:06][%mdl 4096] Endgame KRB-KRN} 30. g4 {[%emt 0:01:20]} fxg4 {[%emt 0:00:11]} 31. hxg4 {[%emt 0:00:05]} Rb2+ {[%emt 0:07:49]} 32. Rd2 {[%emt 0:00:08]} Kf7 {[%emt 0:00:23] [#]} 33. Rxb2 {[%emt 0:01:33]} ({White should play} 33. f4 $1 $16) 33... Nxb2 $14 {[%emt 0:00:05]} 34. Ke2 {[%emt 0:00:26]} Nc4 {[%emt 0:00:57] [#]} (34... Ke6 $11) 35. Bd4 {[%emt 0:00:25] Weighted Error Value: White=0.12 (very precise) /Black=0.15 (very precise)} (35. Kd3 $1 $16 {[%cal Rd3c4]} b5 36. Ke4) 1/2-1/2

[Event "Polish Youth Ekstraliga 2022"]
[Site "Lublin"]
[Date "2022.06.25"]
[Round "1.28"]
[White "Sowinski, Pawel"]
[Black "Rekuc, Patryk"]
[Result "0-1"]
[ECO "E65"]
[WhiteElo "2060"]
[BlackElo "1842"]
[Annotator "NA RC"]
[PlyCount "92"]
[EventDate "2022.06.24"]
[EventType "team-tourn"]
[EventCountry "POL"]
[SourceTitle "playchess.com"]
[Source "ChessBase"]
[SourceQuality "1"]
[TimeControl "40/5400+30:1800+30"]

1. Nf3 {[%emt 0:00:04]} Nf6 {[%emt 0:00:06]} 2. c4 {[%emt 0:00:05]} g6 {[%emt 0:00:04]} 3. g3 {[%emt 0:00:41]} Bg7 {[%emt 0:00:06]} 4. Bg2 {[%emt 0:00:04]} O-O {[%emt 0:00:06]} 5. O-O {[%emt 0:00:06]} d6 {[%emt 0:00:05]} 6. d4 {[%emt 0:01:18]} c5 {[%emt 0:01:00]} 7. Nc3 {[%emt 0:01:19]} Nc6 {[%emt 0:05:08]} 8. dxc5 {[%emt 0:11:40]} dxc5 {[%emt 0:00:17]} 9. Be3 {[%emt 0:09:22]} Be6 {[%emt 0:08:15]} 10. Nd2 {[%emt 0:10:21]} Nd4 {[%emt 0:30:56]} 11. Na4 {[%emt 0:06:40]} b6 {[%emt 0:21:18]} 12. Bxd4 {[%emt 0:23:41]} cxd4 {[%emt 0:00:12]} 13. Bxa8 {[%emt 0:04:05]} Qxa8 {[%emt 0:00:05]} 14. f3 {[%emt 0:00:05]} Bh3 {[%emt 0:01:09]} 15. Re1 {[%emt 0:04:32]} Ng4 {[%emt 0:00:55]} 16. Nf1 {[%emt 0:03:13]} Bxf1 {[%emt 0:04:53]} 17. Rxf1 {[%emt 0:00:02]} Ne3 {[%emt 0:00:06]} 18. Qd3 {[%emt 0:00:48]} Nxf1 {[%emt 0:01:10]} 19. Rxf1 {[%emt 0:00:01]} Qc6 {[%emt 0:00:53]} 20. b3 {[%emt 0:00:41]} Rc8 {[%emt 0:01:14]} 21. Kg2 {[%emt 0:03:45]} e5 {[%emt 0:03:59]} 22. e4 {[%emt 0:02:46]} Bf8 {[%emt 0:03:44]} 23. Nb2 {[%emt 0:06:34]} Ba3 {[%emt 0:00:22]} 24. Rf2 {[%emt 0:01:24]} Bxb2 {[%emt 0:04:53]} 25. Rxb2 {[%emt 0:00:02]} a6 {[%emt 0:00:45]} 26. Rc2 {[%emt 0:03:26]} Qd6 {[%emt 0:00:40]} 27. Kf2 {[%emt 0:03:03]} Qb4 {[%emt 0:01:54]} 28. f4 {[%emt 0:02:04]} f6 {[%emt 0:00:19]} 29. Ke2 {[%emt 0:00:32]} Qd6 {[%emt 0:00:33]} 30. Qd2 {[%emt 0:01:44]} Re8 {[%emt 0:00:43]} 31. Kf2 {[%emt 0:01:20]} exf4 {[%emt 0:00:21]} 32. Qd3 {[%emt 0:00:21]} f5 {[%emt 0:00:23]} 33. Re2 {[%emt 0:00:11]} fxg3+ {[%emt 0:01:25]} 34. hxg3 {[%emt 0:00:00]} fxe4 {[%emt 0:00:59]} 35. Rxe4 {[%emt 0:00:01]} Rxe4 {[%emt 0:00:59]} 36. Qxe4 {[%emt 0:00:02]} d3 {[%emt 0:02:15]} 37. Ke1 {[%emt 0:01:00]} Qxg3+ {[%emt 0:01:05]} 38. Kd2 {[%emt 0:00:43]} Qf2+ {[%emt 0:01:24]} 39. Kxd3 Qf5 {[%emt 0:00:50]} 40. b4 {[%emt 0:00:00]} Kf7 {[%emt 0:00:00]} 41. Qxf5+ {[%emt 0:03:57]} gxf5 {[%emt 0:00:40]} 42. Ke3 {[%emt 0:00:03]} h5 {[%emt 0:01:33]} 43. Kf4 {[%emt 0:00:06]} h4 {[%emt 0:00:09]} 44. a4 {[%emt 0:04:07]} Ke6 {[%emt 0:02:39]} 45. Kf3 {[%emt 0:04:31]} Kd6 {[%emt 0:01:04]} 46. Kg2 {[%emt 0:00:06]} f4 {[%emt 0:00:17]} 0-1

[Event "Polish Youth Ekstraliga 2022"]
[Site "Lublin"]
[Date "2022.06.25"]
[Round "1.29"]
[White "Marcinczyk, Monika"]
[Black "Wikar, Martyna"]
[Result "0-1"]
[ECO "B13"]
[WhiteElo "1991"]
[BlackElo "2197"]
[Annotator "RC"]
[PlyCount "120"]
[EventDate "2022.06.24"]
[EventType "team-tourn"]
[EventCountry "POL"]
[SourceTitle "playchess.com"]
[Source "ChessBase"]
[SourceQuality "1"]
[TimeControl "40/5400+30:1800+30"]

1. e4 {[%emt 0:00:03]} c6 {[%emt 0:00:10]} 2. d4 {[%emt 0:00:07]} d5 {[%emt 0:00:05]} 3. exd5 {[%emt 0:01:54]} cxd5 {[%emt 0:00:08]} 4. Bd3 {[%emt 0:00:05]} Nc6 {[%emt 0:00:13]} 5. c3 {[%emt 0:00:05]} Qc7 {[%emt 0:00:26]} 6. Ne2 {[%emt 0:00:21]} Bg4 {[%emt 0:00:33]} 7. O-O {[%emt 0:00:15]} e6 {[%emt 0:00:55]} 8. Qe1 {[%emt 0:01:16]} Nf6 {[%emt 0:00:32]} 9. f3 {[%emt 0:00:22]} Bh5 {[%emt 0:00:20]} 10. Qh4 {[%emt 0:02:29]} h6 {[%emt 0:03:07]} 11. Qh3 {[%emt 0:05:00]} Bd6 {[%emt 0:01:42]} 12. Ng3 {[%emt 0:11:35]} Bg6 {[%emt 0:10:57]} 13. Bxg6 {[%emt 0:02:32]} fxg6 {[%emt 0:00:04]} 14. Qxe6+ {[%emt 0:05:43]} Kf8 {[%emt 0:00:06]} 15. Qh3 {[%emt 0:05:31]} Kf7 {[%emt 0:00:38]} 16. Nd2 {[%emt 0:08:23]} Rae8 {[%emt 0:01:43]} 17. Nb3 {[%emt 0:02:14]} a5 {[%emt 0:01:33]} 18. Rb1 {[%emt 0:19:42]} Nd8 {[%emt 0:14:21]} 19. f4 {[%emt 0:03:38]} a4 {[%emt 0:00:07]} 20. Nc5 {[%emt 0:03:47]} Bxc5 {[%emt 0:02:21]} 21. dxc5 {[%emt 0:00:06]} Qxc5+ {[%emt 0:00:28]} 22. Kh1 {[%emt 0:00:29]} Rhf8 {[%emt 0:09:27]} 23. Bd2 {[%emt 0:00:55]} Kg8 {[%emt 0:02:06]} 24. f5 {[%emt 0:08:54]} g5 {[%emt 0:11:50]} 25. Nh5 {[%emt 0:02:14]} Re2 {[%emt 0:01:23]} 26. Nxf6+ {[%emt 0:00:35]} Rxf6 {[%emt 0:00:06]} 27. Rbd1 {[%emt 0:04:40]} Nc6 {[%emt 0:02:05]} 28. Qf3 {[%emt 0:05:49]} Qc4 {[%emt 0:05:03]} 29. b3 {[%emt 0:03:02]} Qe4 {[%emt 0:02:13]} 30. g4 {[%emt 0:01:43]} Ne5 {[%emt 0:01:41]} 31. Qxe4 {[%emt 0:00:10]} dxe4 {[%emt 0:00:17]} 32. Rfe1 {[%emt 0:00:46]} Rxe1+ {[%emt 0:01:01]} 33. Rxe1 {[%emt 0:00:10]} Nxg4 {[%emt 0:02:28]} 34. Kg1 {[%emt 0:00:21]} Ne5 {[%emt 0:00:35]} 35. Kg2 {[%emt 0:00:24]} axb3 {[%emt 0:00:53]} 36. axb3 {[%emt 0:00:05]} Nf3 {[%emt 0:00:14]} 37. Re2 {[%emt 0:00:30]} Rxf5 {[%emt 0:00:36]} 38. Be1 {[%emt 0:01:53]} Nxe1+ {[%emt 0:01:27]} 39. Rxe1 {[%emt 0:00:08]} Rf3 {[%emt 0:01:29]} 40. Rxe4 {[%emt 0:00:00]} Rxc3 {[%emt 0:00:00]} 41. Rb4 {[%emt 0:01:25]} Rc7 {[%emt 0:00:23]} 42. Kg3 {[%emt 0:06:34]} Rf7 {[%emt 0:01:44]} 43. Rb6 {[%emt 0:00:24]} Kh7 {[%emt 0:01:11]} 44. Kg4 {[%emt 0:01:33]} Re7 {[%emt 0:01:45]} 45. b4 {[%emt 0:01:38]} Kg8 {[%emt 0:00:28]} 46. Kf5 {[%emt 0:00:51]} Kf7 {[%emt 0:01:27]} 47. Rd6 {[%emt 0:01:08]} Rc7 {[%emt 0:03:53]} 48. Rb6 {[%emt 0:03:56]} Ke7 {[%emt 0:03:50]} 49. b5 {[%emt 0:04:37]} Kd7 {[%emt 0:04:31]} 50. Kg6 {[%emt 0:02:00]} Kc8 {[%emt 0:01:07]} 51. Rd6 {[%emt 0:04:14]} Rc2 {[%emt 0:03:09]} 52. h4 {[%emt 0:02:01]} Kc7 {[%emt 0:01:11]} 53. Rd5 {[%emt 0:01:33]} gxh4 {[%emt 0:02:24]} 54. Kxg7 {[%emt 0:00:32]} Rg2+ {[%emt 0:02:36]} 55. Kf6 {[%emt 0:02:30]} Rg5 {[%emt 0:00:50]} 56. Rd4 {[%emt 0:00:26]} Rxb5 {[%emt 0:00:23]} 57. Rxh4 {[%emt 0:00:08]} h5 {[%emt 0:00:08]} 58. Ke6 {[%emt 0:00:17]} Rc5 {[%emt 0:00:17]} 59. Rd4 {[%emt 0:00:56]} Rc6+ {[%emt 0:00:30]} 60. Ke5 {[%emt 0:00:28]} b5 {[%emt 0:00:28]} 0-1

[Event "Polish Youth Ekstraliga 2022"]
[Site "Lublin"]
[Date "2022.06.25"]
[Round "1.30"]
[White "Natoli, Alessia"]
[Black "Szczotka, Klara"]
[Result "0-1"]
[ECO "B13"]
[WhiteElo "1680"]
[BlackElo "1863"]
[Annotator "NA RC"]
[PlyCount "78"]
[EventDate "2022.06.24"]
[EventType "team-tourn"]
[EventCountry "POL"]
[SourceTitle "playchess.com"]
[Source "ChessBase"]
[SourceQuality "1"]
[TimeControl "40/5400+30:1800+30"]

1. e4 c6 {[%emt 0:00:03]} 2. d4 {[%emt 0:01:30]} d5 {[%emt 0:00:04]} 3. exd5 {[%emt 0:01:16]} cxd5 {[%emt 0:00:03]} 4. Bd3 {[%emt 0:00:27]} Nc6 {[%emt 0:00:06]} 5. c3 {[%emt 0:00:47]} Nf6 {[%emt 0:00:30]} 6. h3 {[%emt 0:00:57]} g6 {[%emt 0:01:50]} 7. Nf3 {[%emt 0:02:19]} Bf5 {[%emt 0:01:54]} 8. Bxf5 {[%emt 0:03:56]} gxf5 {[%emt 0:00:05]} 9. Bf4 {[%emt 0:01:11]} e6 {[%emt 0:01:16]} 10. Nbd2 {[%emt 0:03:47]} Bg7 {[%emt 0:01:26]} 11. O-O {[%emt 0:03:02]} O-O {[%emt 0:02:26]} 12. Ne5 {[%emt 0:03:20]} Kh8 {[%emt 0:07:07]} 13. Re1 {[%emt 0:04:12]} Ne4 {[%emt 0:03:52]} 14. Qh5 {[%emt 0:09:33]} Nxe5 {[%emt 0:01:09]} 15. dxe5 {[%emt 0:02:23]} Qb6 {[%emt 0:01:30]} 16. Nxe4 {[%emt 0:05:43]} dxe4 {[%emt 0:00:30]} 17. Re2 {[%emt 0:03:26]} Rad8 {[%emt 0:07:50]} 18. Kh1 {[%emt 0:03:32]} Qb5 {[%emt 0:01:50]} 19. Rae1 {[%emt 0:06:51]} Rd3 {[%emt 0:03:36]} 20. Bg5 {[%emt 0:00:30]} Qxe5 {[%emt 0:08:36]} 21. Be7 {[%emt 0:06:56]} Rg8 {[%emt 0:00:39]} 22. Qxf7 {[%emt 0:08:33]} Rd7 {[%emt 0:02:38]} 23. f4 {[%emt 0:00:30]} Qc7 {[%emt 0:01:11]} 24. Qxe6 {[%emt 0:08:37]} Rxe7 {[%emt 0:00:09]} 25. Qxf5 {[%emt 0:01:59]} Rf8 {[%emt 0:01:01]} 26. Qg5 {[%emt 0:02:37]} Rxf4 {[%emt 0:01:44]} 27. g3 {[%emt 0:00:30]} Rf8 {[%emt 0:00:30]} 28. Qh4 {[%emt 0:00:30]} Rfe8 {[%emt 0:04:45]} 29. Kg2 {[%emt 0:07:43]} e3 {[%emt 0:01:22]} 30. Qf4 {[%emt 0:00:30]} Qc6+ {[%emt 0:00:30]} 31. Kg1 {[%emt 0:03:27]} Qe4 {[%emt 0:01:05]} 32. Qxe4 {[%emt 0:00:30]} Rxe4 {[%emt 0:00:30]} 33. Rd1 {[%emt 0:00:45]} Bh6 {[%emt 0:00:21]} 34. Kg2 {[%emt 0:01:18]} Kg7 {[%emt 0:00:30]} 35. h4 {[%emt 0:01:17]} Kf6 {[%emt 0:04:19]} 36. Kh3 {[%emt 0:00:34]} Rg8 {[%emt 0:00:57]} 37. Rd4 {[%emt 0:01:50]} Rxd4 {[%emt 0:00:30]} 38. cxd4 {[%emt 0:00:30]} Rd8 {[%emt 0:00:00]} 39. g4 {[%emt 0:00:00]} Bf4 {[%emt 0:00:30]} 0-1

[Event "Polish Youth Ekstraliga 2022"]
[Site "Lublin"]
[Date "2022.06.26"]
[Round "2.1"]
[White "Czopor, Maciej"]
[Black "Czernek, Tymon"]
[Result "1/2-1/2"]
[ECO "D17"]
[WhiteElo "2425"]
[BlackElo "2199"]
[Annotator "TA"]
[PlyCount "74"]
[EventDate "2022.06.24"]
[EventType "team-tourn"]
[EventCountry "POL"]
[SourceTitle "playchess.com"]
[Source "ChessBase"]
[SourceQuality "1"]
[TimeControl "40/5400+30:1800+30"]

{[%evp 11,74,0,25,29,29,11,11,11,15,7,22,6,18,1,32,33,46,40,33,39,21,35,32,4,158,187,187,177,125,-17,16,35,31,2,13,11,91,80,98,108,112,98,97,83,108,35,53,8,99,85,85,0,12,0,0,0,0,-8,-12,-13,0,0,0,-1,0]} 1. d4 {[%emt 0:00:05]} d5 {[%emt 0:00:09][%cal Bd7d5,Bd5c4][%mdl 32]} 2. c4 {[%emt 0:00:04]} c6 {[%emt 0:00:07]} 3. Nf3 {[%emt 0:00:15]} Nf6 {[%emt 0:00:04]} 4. Nc3 {[%emt 0:00:42]} dxc4 {[%emt 0:00:06]} 5. a4 {[%emt 0:00:11]} Bf5 {[%emt 0:00:04]} 6. Nh4 {[%emt 0:00:29]} Bg6 {[%emt 0:04:07]} 7. Nxg6 {[%emt 0:01:46] D17: Slav Defence: 5 a4 Bf5: Lines with 6 Nh4 and 6 Ne5.} hxg6 {[%emt 0:00:03]} 8. e3 {[%emt 0:02:30][%cal Be2e3,Be3e4][%mdl 32]} e6 {[%emt 0:07:21]} 9. Bxc4 {[%emt 0:01:01]} Bb4 {[%emt 0:02:50]} 10. O-O {[%emt 0:10:58]} Qc7 {[%emt 0:06:12][%csl Gh8][%cal Rc7h2]} 11. g3 {[%emt 0:01:46]} Nbd7 {[%emt 0:06:59][%cal Bb8d7,Bd7e5,Be5d3][%mdl 32]} 12. Qe2 {[%emt 0:05:48]} O-O {[%emt 0:03:35]} 13. e4 {[%emt 0:08:09] [#]} e5 $146 {[%emt 0:01:36]} ({Predecessor:} 13... Nb6 14. Bb3 e5 15. dxe5 Bxc3 16. exf6 Bxf6 17. Rd1 Rad8 18. Be3 Qe5 19. a5 Nc8 {0-1 (55) Vshivkov,V-Kamrukov,A (2022) Berdsk 2010}) 14. dxe5 {[%emt 0:00:24]} Nxe5 {[%emt 0:00:21]} 15. Ba2 {[%emt 0:00:52]} Rad8 {[%emt 0:04:10]} 16. f4 {[%emt 0:10:25]} Nd3 {[%emt 0:00:11]} 17. Be3 {[%emt 0:00:30]} (17. e5 $5 {[%cal Re5f6]} Nxc1 18. Raxc1 $11) 17... Bxc3 $2 {[%emt 0:16:56]} ({Black should play} 17... Qa5 $11 18. e5 Nxb2) 18. bxc3 $16 {[%emt 0:00:30][%cal Bb2c3,Bc3d4][%mdl 32]} Nxe4 {[%emt 0:00:06] Strongly threatening ...Rfe8.} 19. Bd4 {[%emt 0:01:06]} Ndc5 {[%emt 0:00:10] [#]} 20. Qg4 {[%emt 0:22:28] [#]} ({White should try} 20. f5 $1 $16 {[%cal Rf5g6] Threatens to win with fxg6.} Qd6 21. Rf4) 20... Rxd4 $1 {[%emt 0:08:43]} 21. cxd4 {[%emt 0:00:08]} Nf6 {[%emt 0:00:38]} 22. Qd1 {[%emt 0:12:10]} (22. Qf3 $5 {[%cal Rd4c5]} Nce4 23. Rfe1 $14) 22... Nce4 {[%emt 0:00:27]} 23. Qd3 {[%emt 0:02:18]} Rd8 {[%emt 0:03:46]} (23... Nd6 $11 {keeps the balance.}) 24. Rfe1 {[%emt 0:01:19]} Nd6 {[%emt 0:04:06]} 25. Qxg6 {[%emt 0:02:19] White is more active.} c5 {[%emt 0:02:28]} 26. Qc2 {[%emt 0:00:33]} c4 {[%emt 0:01:02]} 27. Re5 {[%emt 0:02:41]} b6 {[%emt 0:03:56]} 28. Qe2 {[%emt 0:05:38]} (28. Rc1 $16) 28... Qc6 $14 {[%emt 0:01:22]} 29. Bb1 {[%emt 0:00:34]} c3 {[%emt 0:04:06]} (29... b5 $11) 30. Bd3 $16 {[%emt 0:00:32]} Rc8 {[%emt 0:00:38]} 31. Bc2 {[%emt 0:00:53]} ({Better is} 31. a5 $16) 31... Nc4 $1 $11 {[%emt 0:01:30] The position is equal.} 32. Qd3 {[%emt 0:02:47][%cal Oa1c1]} g6 {[%emt 0:03:15]} ({Resist} 32... Nxe5 33. fxe5 Ne8 34. Rf1 $16) 33. Re2 {[%emt 0:03:11]} Nd2 {[%emt 0:00:33] Against Bb3} 34. Rd1 {[%emt 0:01:31]} Nf3+ {[%emt 0:00:41]} 35. Kf1 {[%emt 0:00:10] Black must now prevent d5.} Nd2+ {[%emt 0:00:19][%mdl 1024] Black has compensation. Pair of Knights!} 36. Kg1 {[%emt 0:00:01]} Nf3+ {[%emt 0:01:28]} 37. Kf1 {[%emt 0:00:08] Hoping for d5.} Nd2+ {[%emt 0:00:55] Weighted Error Value: White=0.23 (precise) /Black=0.24 (precise)} 1/2-1/2